Cogmind - Beta 17 @@@ ROGUE MODE // 2026.07.16 @ 03:01:05 Player: TheSkyeDoctor Result: Destroyed by P-80 Master with Gamma Rifle Performance ------------- Evolutions (9) 4500 Regions Visited (14) 2800 Robots Destroyed (84) 420 Value Destroyed (3087) 3087 Prototype IDs (26) 520 Alien Tech Used (0) 0 Bonus (456) 456 TOTAL SCORE: 11783 Bonus ------- High Alert Combat Kills 67 Follower Combat Kills 89 Aligned with FarCom 300 Cogmind --------- Core Integrity 0/1600 Matter 211/300 Energy 13/100 System Corruption 32% Temperature Cool (0) Movement Core (50) Location -1/Access Parts ------- > --- POWER (2) -------- (None) > --- PROPULSION (4) --- (None) > --- UTILITY (15) ----- Core Analyzer > --- WEAPON (4) ------- (None) > --- INVENTORY (5) ---- High-density Centrium Wheel Experimental Matter Compressor (335) Particle Accelerator Bore Cannon Bore Cannon Peak State ------------ > --- POWER ------------ Micro Antimatter Reactor Light Quantum Reactor > --- PROPULSION ------- Armored Huge Wheel Armored Huge Wheel > --- UTILITY ---------- Advanced Cryofiber Web Advanced Heat Sink High-capacity Storage Unit Experimental Matter Compressor Long-range Terrain Scanner Improved Terrain Scan Processor Improved Targeting Computer Advanced Target Analyzer Core Analyzer Hardened Heavy Armor Plating Improved Medium Armor Plating Improved Force Field Advanced Point Defense System Hacking Suite > --- WEAPON ----------- Nova Cannon Enhanced Nova Cannon Enhanced Hardcell Cannon Powered Hammer > --- INVENTORY -------- Light Quantum Reactor Light Quantum Reactor Armored Huge Wheel Centrium Wheel High-density Centrium Wheel Energy Well High-capacity Matter Pod Improved Terrain Scanner Long-range Terrain Scanner Improved Targeting Computer Particle Accelerator Hacking Suite Nova Cannon Bore Cannon Bore Cannon Enhanced Hardcell Cannon Grenade Launcher Improved Datajack Power Maul [Rating: 148] Favorites ----------- Power Ion Engine Engine Ion Engine Power Core Neutrino Core Reactor Light Quantum Reactor Propulsion Armored Huge Wheel Treads Light Treads Wheel Armored Huge Wheel Flight Unit Biomechanical Wings Utility Advanced Heat Sink Device Advanced Heat Sink Storage High-capacity Storage Unit Processor Core Analyzer Hackware Hacking Suite Protection Hardened Heavy Armor Plating Weapon Powered Hammer Energy Gun EM Pulse Gun Energy Cannon YOLO Cannon Ballistic Gun Light Assault Rifle Ballistic Cannon Bore Cannon Launcher Grenade Launcher Special Weapon Mining Laser Impact Weapon Powered Hammer Slashing Weapon Katana Special Melee Weapon Improved Datajack Build | -11 -10 -10 -10 -9 -8 -7 -6 -6 -6 -5 -4 -3 -2 -1 ------- Run | Yrd Mat Min Exi Min Mat Fac Fac Low Low Fac Fac Res Res Acc Slots Evolved 18 | . . . . . 4 2 2 . . 2 2 2 2 2 Power 1 | . . . . . . . . . . . 1 . . . Propulsion 2 | . . . . . . 2 . . . . . . . . Utility 13 | . . . . . 2 . 2 . . 2 1 2 2 2 Weapon 2 | . . . . . 2 . . . . . . . . . Parts Attached 72 | 7 . 3 2 1 9 7 5 2 3 1 5 3 9 15 Power 10 | 1 . 1 . . 1 1 1 . . . 1 . 3 1 Engine 4 | 1 . 1 . . 1 1 . . . . . . . . Core 2 | . . . . . . . 1 . . . 1 . . . Reactor 4 | . . . . . . . . . . . . . 3 1 Propulsion 12 | 2 . . . 1 1 2 1 . 1 . . . 1 3 Treads 2 | 2 . . . . . . . . . . . . . . Leg . | . . . . . . . . . . . . . . . Wheel 9 | . . . . 1 1 2 . . 1 . . . 1 3 Hover . | . . . . . . . . . . . . . . . Flight 1 | . . . . . . . 1 . . . . . . . Utility 29 | 2 . 1 1 . 4 2 3 2 . 1 2 2 3 6 Device 10 | 1 . . . . 2 . 1 1 . . . 1 3 1 Storage 6 | 1 . . 1 . 1 . . 1 . . . 1 . 1 Processor 8 | . . 1 . . . 2 2 . . . 1 . . 2 Hackware 2 | . . . . . . . . . . . 1 . . 1 Protection 3 | . . . . . 1 . . . . 1 . . . 1 Artifact . | . . . . . . . . . . . . . . . Weapon 21 | 2 . 1 1 . 3 2 . . 2 . 2 1 2 5 Energy Gun 2 | 1 . . . . 1 . . . . . . . . . Energy Cannon 8 | . . . . . 1 . . . . . 2 1 1 3 Ballistic Gun 1 | 1 . . . . . . . . . . . . . . Ballistic Cannon 5 | . . 1 . . . . . . 2 . . . 1 1 Launcher 1 | . . . . . . . . . . . . . . 1 Special Weapon 1 | . . . 1 . . . . . . . . . . . Impact Weapon 1 | . . . . . . 1 . . . . . . . . Slashing Weapon 1 | . . . . . 1 . . . . . . . . . Piercing Weapon . | . . . . . . . . . . . . . . . Special Melee Weapon 1 | . . . . . . 1 . . . . . . . . Unidentified Prototypes 3 | . . . . . . . 1 . . . . . . 2 Parts Lost 43 | . . 2 . 3 5 . . . 3 . . . 3 27 Power 6 | . . 1 . . 1 . . . 1 . . . . 3 Propulsion 8 | . . . . 2 1 . . . 1 . . . 1 3 Utility 19 | . . . . . 2 . . . . . . . 1 16 Weapon 10 | . . 1 . 1 1 . . . 1 . . . 1 5 Highest Loss Streak 27 | . . 2 . 3 3 . . . 3 . . . 1 27 To Critical Strikes . | . . . . . . . . . . . . . . . Average Backups 10 | 1 4 6 6 7 5 10 10 11 10 10 10 13 16 17 Power . | . 1 . . . . 1 1 1 . 1 . . 1 1 Propulsion 2 | . 1 1 1 . . 3 4 3 2 2 2 3 3 2 Utility 4 | . 2 3 3 4 3 4 3 4 6 5 5 6 5 5 Weapon 2 | . . 1 2 2 1 1 2 2 2 2 2 3 5 5 Tool/Special . | . . . . . . . . . . . . . . . Unused Backups 8 | . . . . . . 2 2 . . . . . 1 3 Power 3 | . . . . . . 2 1 . . . . . . . Propulsion . | . . . . . . . . . . . . . . . Utility 4 | . . . . . . . 1 . . . . . 1 2 Weapon 1 | . . . . . . . . . . . . . . 1 Tool/Special . | . . . . . . . . . . . . . . . Average Slot Usage (%) 85 | . 100 99 100 92 75 73 79 80 85 82 81 84 85 83 Engine 6 | . 14 13 14 14 8 7 3 . 4 5 4 4 1 . Core 1 | . . . . . . . 2 6 . . 3 4 1 . Reactor 1 | . . . . . . . . . . . . . 4 7 Treads 7 | . 28 28 28 21 . . . . . . . . . . Wheel 8 | . . . . 1 13 14 13 13 13 11 10 9 7 7 Device 11 | . 14 5 . . 8 7 13 13 13 11 10 14 20 18 Storage 9 | . 14 14 14 14 9 7 6 6 6 5 5 8 8 7 Processor 13 | . . 8 14 14 9 13 19 20 20 17 15 14 13 15 Hackware 1 | . . . . . . . . . . . 5 4 4 4 Protection 1 | . . . . . 2 . . . . 5 5 4 4 7 Energy Gun 4 | . 14 14 11 . 8 2 . . . . . . . . Energy Cannon 4 | . . . . . 9 7 6 6 . . 1 6 7 7 Ballistic Gun 2 | . 14 13 . . . . . . . . . . . . Ballistic Cannon 4 | . . . 14 14 3 . . . 11 11 10 6 4 3 Impact Weapon 2 | . . . . . . 2 6 6 6 5 5 4 4 3 Special Melee Weapon 1 | . . . . . . 3 6 6 6 5 3 . . . Peak Build Rating 148 | 7 7 7 9 9 38 63 71 74 74 69 84 101 132 148 Average Rating 60 | 5 7 6 8 8 31 58 69 71 61 69 76 97 123 136 On Entrance 48 | . 7 7 7 9 7 38 63 71 74 62 69 84 101 132 Avg Prop Armor Cover (%) . | . . . . . . . . . . . . . . . Naked Turns . | . . . . . . . . . . . . . . . Heaviest Build 159 | 14 14 15 19 19 49 53 54 74 74 94 118 127 148 159 Greatest Support 56 | 40 40 40 40 40 20 56 56 56 56 56 56 56 56 56 Greatest Overweight (x) 5 | . . . . 5 4 . . 1 1 1 2 2 2 2 Average Overweight (x) . | . . . . . 2 . . . 1 1 1 2 2 1 Largest Inventory Capacity 20 | 8 8 8 10 10 15 15 15 20 20 20 20 20 20 20 Average Capacity 14 | 7 8 8 8 10 12 15 15 16 20 20 20 20 20 19 Most Carried 20 | 3 6 7 8 9 15 15 15 18 18 12 15 18 20 20 Average Carried 11 | 1 4 6 7 8 6 13 14 15 13 12 12 15 18 17 Final Capacity 20 | 8 8 8 10 10 15 15 15 20 20 20 20 20 20 5 Final Carried 20 | 3 6 6 8 8 15 15 15 18 14 12 15 18 20 5 Class Distribution -------------------- 44% | Mutant 33% | Assassin 12% | Skirmisher 5% | Derelict-Assassin Dominant Class ---------------- Mutant | -10/Materials Mutant | -10/Mines Mutant | -10/Exiles Mutant | -9/Mines Skirmisher | -8/Materials Mutant | -7/Factory Assassin | -6/Factory Mutant | -6/Lower Caves Derelict-Mutant | -6/Lower Caves Derelict-Assassin | -5/Factory Derelict-Assassin | -4/Factory Assassin | -3/Research Assassin | -2/Research Assassin | -1/Access Resources | -11 -10 -10 -10 -9 -8 -7 -6 -6 -6 -5 -4 -3 -2 -1 ----------- Run | Yrd Mat Min Exi Min Mat Fac Fac Low Low Fac Fac Res Res Acc Matter Collected 1789 | 278 12 47 10 140 84 53 68 30 119 . . . 502 446 Remotely . | . . . . . . . . . . . . . . . Salvage Created 2808 | 140 211 103 . 91 725 70 59 126 216 . . . 935 132 Parts 164 | 10 12 8 . 6 45 7 5 7 8 . . . 47 9 Haulers Intercepted 3 | . 1 . . . 2 . . . . . . . . . Recyclers Shooed . | . . . . . . . . . . . . . . . Parts Field Recycled . | . . . . . . . . . . . . . . . Retrieved Matter . | . . . . . . . . . . . . . . . Parts Self-Destructed 8 | . . . . . . . . 4 4 . . . . . Prevented . | . . . . . . . . . . . . . . . Parts Restored . | . . . . . . . . . . . . . . . Kills | -11 -10 -10 -10 -9 -8 -7 -6 -6 -6 -5 -4 -3 -2 -1 ------- Run | Yrd Mat Min Exi Min Mat Fac Fac Low Low Fac Fac Res Res Acc Combat Hostiles Destroyed 52 | . 3 4 . 3 17 1 1 6 4 . . . 13 . Guns 6 | . 2 4 . . . . . . . . . . . . Cannons 26 | . . . . 3 5 1 1 1 3 . . . 12 . AOE 13 | . 1 . . . 8 . . 4 . . . . . . Classes Destroyed 14 | 2 3 1 . . 4 1 . . 2 . . . 1 . Worker 2 | . . . . . 1 . . . . . . . 1 . Builder 14 | . . . . . 10 1 . . . . . . 1 2 Tunneler 4 | 3 . . . . . 1 . . . . . . . . Hauler 3 | . 1 . . . 2 . . . . . . . . . Recycler 1 | 1 . . . . . . . . . . . . . . Operator 1 | . . . . . 1 . . . . . . . . . Watcher 7 | . 1 . . . 1 . 1 . . . . . 1 3 Swarmer 8 | . . 3 . 1 . . . 4 . . . . . . Grunt 31 | . 3 1 . 2 16 . . 2 3 . . . 4 . Brawler 1 | . . . . . . . . . 1 . . . . . Sentry 2 | . . . . . 1 . . . . . . . 1 . Hunter 2 | . . . . . . . . . . . . . 2 . Programmer 8 | . . . . . . 1 1 . . . . . 6 . Samaritan 1 | . . . . . . . . . 1 . . . . . Best Kill Streak 13 | 3 2 3 . 1 13 1 1 6 4 . . . 5 1 Combat Bots Only 6 | . 2 3 . 1 5 1 1 6 4 . . . 4 . Max Kills in Single Turn 6 | 1 1 1 . 1 6 1 1 3 1 . . . 2 1 Gunslinging . | . . . . . . . . . . . . . . . Exploded 2 | . 1 . . . 2 . . 2 . . . . . . Melee . | . . . . . . . . . . . . . . . Uniques/NPCs Destroyed . | . . . . . . . . . . . . . . . Combat | -11 -10 -10 -10 -9 -8 -7 -6 -6 -6 -5 -4 -3 -2 -1 -------- Run | Yrd Mat Min Exi Min Mat Fac Fac Low Low Fac Fac Res Res Acc Hostile Shots Fired 592 | . 8 40 . 34 31 2 6 52 23 4 . . 113 279 Missed 200 | . 3 8 . 3 6 2 1 19 6 2 . . 42 108 Hits 392 | . 5 32 . 31 25 . 5 33 17 2 . . 71 171 Projectile 392 | . 5 32 . 31 25 . 5 33 17 2 . . 71 171 AOE 1 | . . . . . . . . . . . . . 1 . Critical Strikes 14 | . . 1 . . 1 . 1 2 2 . . . 4 3 Damage Taken 8584 | . 68 378 . 369 624 . 71 551 442 54 . . 1199 4828 Core 2245 | . 13 61 . 93 180 . 14 141 75 . . . 68 1600 Absorbed by Shields 714 | . . . . . . . . . . . . . 525 189 Core Remaining (%) 85 | 100 . . . 33 67 100 . . 72 100 100 100 95 . Volleys Fired 165 | 8 14 23 . 32 20 1 2 8 8 1 . . 33 15 Largest 3 | 2 2 2 . 2 3 1 1 1 2 2 . . 3 3 Hottest 298 | 60 60 60 . 130 195 100 100 100 100 96 . . 284 298 Shots Fired 310 | 16 28 45 . 49 29 1 2 8 14 2 . . 72 44 Gun 98 | 16 28 45 . . 9 . . . . . . . . . Cannon 194 | . . . . 32 20 1 2 8 14 2 . . 72 43 Launcher 1 | . . . . . . . . . . . . . . 1 Special 17 | . . . . 17 . . . . . . . . . . Kinetic 140 | 8 14 22 . 32 . . . . 12 2 . . 33 17 Thermal 117 | . . . . 17 29 1 2 8 2 . . . 32 26 Explosive 1 | . . . . . . . . . . . . . . 1 Electromagnetic 52 | 8 14 23 . . . . . . . . . . 7 . Robot Hit Streak 10 | 10 9 6 . 8 9 2 . 2 6 . . . 6 5 Robot Miss Streak 6 | 1 2 3 . 4 6 . . 3 3 2 . . 4 5 Penetration Max . | . . . . . . . . . . . . . . . Secondary Targets 1 | . . 1 . . . . . . . . . . . . Max Gunslinging Chain 1 | . . 1 . . . . . . . . . . . . Shots Hit Robots 157 | 12 15 28 . 12 21 3 1 3 6 . . . 43 13 Core Hits 102 | 4 9 8 . 3 28 2 1 5 6 . . . 24 12 Critical Kills 10 | . . . . . 3 . 1 1 4 . . . 1 . Critical Parts Destroyed 3 | . . . . . . . . . 3 . . . . . Critical Strikes 17 | 1 . 1 . . 3 . 1 1 7 . . . 2 1 Meltdown 6 | . . . . . 3 . . 1 1 . . . 1 . Destroy 6 | . . . . . . . . . 6 . . . . . Blast 2 | . . . . . . . . . . . . . 1 1 Corrupt 2 | 1 . 1 . . . . . . . . . . . . Smash 1 | . . . . . . . 1 . . . . . . . Melee Attacks 33 | . . . . . . 5 12 . . . 2 . 3 11 Impact 30 | . . . . . . 2 12 . . . 2 . 3 11 Slashing 3 | . . . . . . 3 . . . . . . . . Piercing . | . . . . . . . . . . . . . . . Sneak Attacks 2 | . . . . . . 2 . . . . . . . . Combat Hostiles . | . . . . . . . . . . . . . . . Follow-up Attacks . | . . . . . . . . . . . . . . . Damage Inflicted 9916 | 167 225 278 . 237 4361 293 215 926 541 44 . . 1797 832 Guns 635 | 130 174 278 . . 53 . . . . . . . . . Cannons 5086 | . . . . 234 1646 101 125 277 359 . . . 1745 599 Explosions 3918 | 37 51 . . . 2662 . 60 649 182 44 . . . 233 Melee 274 | . . . . . . 192 30 . . . . . 52 . Ramming 3 | . . . . 3 . . . . . . . . . . Kinetic 1596 | 41 38 111 . 234 . . . . 114 . . . 781 277 Thermal 7337 | 37 51 . . . 4361 101 185 926 427 . . . 927 322 Explosive 233 | . . . . . . . . . . . . . . 233 Electromagnetic 473 | 89 136 167 . . . . . . . 44 . . 37 . Impact 274 | . . . . . . 192 30 . . . . . 52 . Slashing . | . . . . . . . . . . . . . . . Piercing . | . . . . . . . . . . . . . . . Highest Corruption 32 | . . . . . . . . . . . . 2 3 32 Average Corruption 3 | . . . . . . . . . . . . 2 2 4 Corruption Purged . | . . . . . . . . . . . . . . . Corruption Blocked . | . . . . . . . . . . . . . . . Effects 23 | . . . . . . . . . . . . 3 9 11 Message Errors 9 | . . . . . . . . . . . . 2 3 4 Matter Fused 4 | . . . . . . . . . . . . 1 2 1 Heat Flow Errors 1 | . . . . . . . . . . . . . . 1 Energy Discharges 2 | . . . . . . . . . . . . . 1 1 Data Loss (minor) 1 | . . . . . . . . . . . . . . 1 Data Loss (major) 2 | . . . . . . . . . . . . . 1 1 Misdirections 2 | . . . . . . . . . . . . . . 2 Weapon Failures 2 | . . . . . . . . . . . . . 2 . Overload Shots . | . . . . . . . . . . . . . . . Overflow Damage 1039 | 10 . . . . 723 91 90 86 . . . . 39 . Projectiles 340 | . . . . . 242 . 85 2 . . . . 11 . Explosions 580 | 10 . . . . 481 . 5 84 . . . . . . Melee 119 | . . . . . . 91 . . . . . . 28 . Knockbacks 20 | . . . . 4 . 1 . . 1 . . . 11 3 Impact 1 | . . . . . . 1 . . . . . . . . Kinetic 15 | . . . . 4 . . . . 1 . . . 8 2 Secondary 4 | . . . . . . . . . . . . . 3 1 Self-Inflicted Damage 385 | . . . . 1 225 . . 39 120 . . . . . Shots 7 | . . . . . 4 . . 1 2 . . . . . Rammed 1 | . . . . 1 . . . . . . . . . . Targets Rammed 1 | . . . . 1 . . . . . . . . . . Kicked . | . . . . . . . . . . . . . . . Crushed . | . . . . . . . . . . . . . . . Highest Temperature 282 | 40 82 130 . 94 282 . . 4 33 . . . 98 139 Average Temperature 43 | 20 26 50 . 28 150 . . 4 12 . . . 38 52 Received Heat Transfer 875 | . 42 162 . 162 234 . . 54 189 . . . 32 . Siege Activations . | . . . . . . . . . . . . . . . Martial Activations . | . . . . . . . . . . . . . . . Shielding Activations . | . . . . . . . . . . . . . . . Robots Disrupted . | . . . . . . . . . . . . . . . Combat Hostiles . | . . . . . . . . . . . . . . . Robots Corrupted 2 | . . . . . . 1 . . . . . . 1 . Combat Hostiles . | . . . . . . . . . . . . . . . Parts Fried 2 | . . . . . . 2 . . . . . . . . Impact Corruptions 6 | . . . . . . 3 . . . . . . 3 . Robots Melted 7 | . . . . . 4 . . 1 1 . . . 1 . Combat Hostiles 7 | . . . . . 4 . . 1 1 . . . 1 . Parts Melted 18 | . . . . 1 12 . 2 . 1 . . . 2 . Heat Transferred 7263 | 50 50 . . . 4410 80 160 1040 400 . . . 777 296 Parts Sabotaged . | . . . . . . . . . . . . . . . Parts Stolen . | . . . . . . . . . . . . . . . Parts Stripped . | . . . . . . . . . . . . . . . Power Chain Reactions 2 | 1 1 . . . . . . . . . . . . . Alert | -11 -10 -10 -10 -9 -8 -7 -6 -6 -6 -5 -4 -3 -2 -1 ------- Run | Yrd Mat Min Exi Min Mat Fac Fac Low Low Fac Fac Res Res Acc Maximum Alert Level 2 | . . . . . 2 1 . . . . . . 1 . Low Security (%) 90 | 100 100 100 . 100 52 93 100 . . 100 100 100 76 100 Level 1 7 | . . . . . 31 6 . . . . . . 23 . Level 2 1 | . . . . . 16 . . . . . . . . . Level 3 . | . . . . . . . . . . . . . . . Level 4 . | . . . . . . . . . . . . . . . Level 5 . | . . . . . . . . . . . . . . . High Security . | . . . . . . . . . . . . . . . Max Security . | . . . . . . . . . . . . . . . Peak Influence 501 | 5 68 71 . 79 501 217 47 . . 15 4 . 242 128 Initial 217 | . . 3 . . 22 217 16 . . . 2 . . 125 Average 52 | 1 20 6 . 30 187 80 5 . . 6 . . 90 30 Influence Increases 2159 | 20 120 156 . 203 721 56 79 130 90 15 4 . 468 97 Destroy 0b10 Robot/C 1140 | . 60 80 . 160 340 20 20 120 80 . . . 260 . Destroy 0b10 Robot/NC 160 | 20 10 . . . 75 10 5 . . . . . 15 25 Destroy Leader 220 | . 24 20 . 10 66 10 12 10 10 . . . 52 6 Allied During Kill 26 | . . 11 . 15 . . . . . . . . . . Successful Hack 32 | . 8 . . . . . . . . . . . 24 . Disable Machine 135 | . 15 . . . 75 . . . . 15 . . 30 . Destroy Structure 326 | . 3 . . 3 135 16 27 . . . 4 . 72 66 Partial Spotted 15 | . . . . . . . 15 . . . . . . . Lose Combat Pursuer 105 | . . 45 . 15 30 . . . . . . . 15 . Influence Decreases 2159 | 20 110 111 55 144 303 498 83 141 110 10 9 . 258 307 Entered New Map 483 | . . 7 55 . 37 260 19 13 4 . 3 . . 85 Time Decay 1495 | 20 110 94 . 121 204 238 64 128 76 10 6 . 228 196 Lost Part 149 | . . 10 . 3 50 . . . 30 . . . 30 26 Lost Ally 20 | . . . . 20 . . . . . . . . . . Purge Threat 12 | . . . . . 12 . . . . . . . . . Squads Dispatched 12 | . 1 . . . 4 1 1 . . . . . 2 3 Investigation 4 | . 1 . . . 2 . . . . . . . . 1 Extermination 6 | . . . . . . 1 1 . . . . . 2 2 Reinforcement 2 | . . . . . 2 . . . . . . . . . Assault . | . . . . . . . . . . . . . . . Garrison . | . . . . . . . . . . . . . . . Intercept . | . . . . . . . . . . . . . . . Searches Triggered . | . . . . . . . . . . . . . . . Construction Impeded 1 | . . . . . 1 . . . . . . . . . Haulers Reinforced . | . . . . . . . . . . . . . . . Active Scanning Responses . | . . . . . . . . . . . . . . . Cargo Convoy Interrupts . | . . . . . . . . . . . . . . . Stealth | -11 -10 -10 -10 -9 -8 -7 -6 -6 -6 -5 -4 -3 -2 -1 --------- Run | Yrd Mat Min Exi Min Mat Fac Fac Low Low Fac Fac Res Res Acc Distress Signals 4 | . . . . . 1 . . . . 1 . . 2 . Communications Jammed . | . . . . . . . . . . . . . . . Distress Signals . | . . . . . . . . . . . . . . . Times Spotted 99 | . 6 8 . 10 22 2 2 7 4 1 . . 16 21 Peak Tracking Total 15 | . 3 3 . 3 5 1 1 6 4 2 . . 5 15 Tactical Retreats 7 | . . 3 . 1 2 . . . . . . . 1 . Traps | -11 -10 -10 -10 -9 -8 -7 -6 -6 -6 -5 -4 -3 -2 -1 ------- Run | Yrd Mat Min Exi Min Mat Fac Fac Low Low Fac Fac Res Res Acc Traps Triggered 8 | . 1 . . . 1 . . . . . 2 1 1 2 Indirectly . | . . . . . . . . . . . . . . . Trap Hack Attempts . | . . . . . . . . . . . . . . . Triggered . | . . . . . . . . . . . . . . . Disarmed . | . . . . . . . . . . . . . . . Reprogrammed . | . . . . . . . . . . . . . . . Reused . | . . . . . . . . . . . . . . . Traps Extracted . | . . . . . . . . . . . . . . . Installed . | . . . . . . . . . . . . . . . Triggered . | . . . . . . . . . . . . . . . Objects Rigged 1 | . 1 . . . . . . . . . . . . . Machines | -11 -10 -10 -10 -9 -8 -7 -6 -6 -6 -5 -4 -3 -2 -1 ---------- Run | Yrd Mat Min Exi Min Mat Fac Fac Low Low Fac Fac Res Res Acc Machines Disabled 9 | . 1 . . . 5 . . . . 1 . . 2 . Max in Single Turn 2 | . 1 . . . 2 . . . . 1 . . 1 . Machines Repaired . | . . . . . . . . . . . . . . . Machines Dismantled . | . . . . . . . . . . . . . . . Machines Sabotaged . | . . . . . . . . . . . . . . . Overloaded Fab Kills . | . . . . . . . . . . . . . . . Hacking | -11 -10 -10 -10 -9 -8 -7 -6 -6 -6 -5 -4 -3 -2 -1 --------- Run | Yrd Mat Min Exi Min Mat Fac Fac Low Low Fac Fac Res Res Acc Machines Accessed 16 | . 1 . 1 . 3 2 2 2 . . 1 . 3 1 Terminals 8 | . 1 . . . 3 . 1 . . . . . 2 1 Fabricators . | . . . . . . . . . . . . . . . Repair Stations . | . . . . . . . . . . . . . . . Recycling Units . | . . . . . . . . . . . . . . . Scanalyzers 2 | . . . . . . 1 . . . . 1 . . . Garrison Access 3 | . . . . . . 1 1 . . . . . 1 . Total Hacks 26 | . 2 . 1 . 6 3 3 4 . . 2 . 4 1 Successful 10 | . 1 . 1 . 1 1 . 4 . . 1 . 1 . Failed 14 | . 1 . . . 5 1 3 . . . . . 3 1 Catastrophic 7 | . . . . . 1 1 3 . . . . . 2 . Database Lockouts 2 | . . . . . . 1 . . . . 1 . . . Manual 12 | . 2 . 1 . 5 . 2 . . . . . 2 . Terminals 14 | . 2 . . . 6 . 2 . . . . . 3 1 Fabricators . | . . . . . . . . . . . . . . . Repair Stations . | . . . . . . . . . . . . . . . Recycling Units . | . . . . . . . . . . . . . . . Scanalyzers 4 | . . . . . . 2 . . . . 2 . . . Garrison Access 3 | . . . . . . 1 1 . . . . . 1 . Terminal Hacks 6 | . . . 1 . 1 . . 4 . . . . . . Record 3 | . . . . . . . . 3 . . . . . . Open Door 1 | . . . . . . . . 1 . . . . . . Unreport Threat 1 | . . . . . 1 . . . . . . . . . Proto ID Catalog 1 | . . . 1 . . . . . . . . . . . Fabricator Hacks . | . . . . . . . . . . . . . . . Repair Station Hacks . | . . . . . . . . . . . . . . . Recycling Unit Hacks . | . . . . . . . . . . . . . . . Scanalyzer 2 | . . . . . . 1 . . . . 1 . . . Retrieve Study 2 | . . . . . . 1 . . . . 1 . . . Garrison Access Hacks . | . . . . . . . . . . . . . . . Unauthorized Hacks 2 | . 1 . . . . . . . . . . . 1 . Terminals 2 | . 1 . . . . . . . . . . . 1 . Detonate 2 | . 1 . . . . . . . . . . . 1 . Fabricators . | . . . . . . . . . . . . . . . Repair Stations . | . . . . . . . . . . . . . . . Recycling Units . | . . . . . . . . . . . . . . . Scanalyzers . | . . . . . . . . . . . . . . . Garrison Access . | . . . . . . . . . . . . . . . Data Cores Recovered . | . . . . . . . . . . . . . . . Used . | . . . . . . . . . . . . . . . Hacking Detections 10 | . 1 . . . 2 1 2 . . . . . 3 1 Full Trace Events 2 | . . . . . 2 . . . . . . . . . Feedback Events . | . . . . . . . . . . . . . . . Feedback Blocked . | . . . . . . . . . . . . . . . Robot Schematics Acquired . | . . . . . . . . . . . . . . . Robots Built . | . . . . . . . . . . . . . . . Authchips . | . . . . . . . . . . . . . . . Time . | . . . . . . . . . . . . . . . Total Robot Build Rating . | . . . . . . . . . . . . . . . Part Schematics Acquired . | . . . . . . . . . . . . . . . Parts Built . | . . . . . . . . . . . . . . . Authchips . | . . . . . . . . . . . . . . . Time . | . . . . . . . . . . . . . . . Total Part Build Rating . | . . . . . . . . . . . . . . . Part Studies Acquired 2 | . . . . . . 1 . . . . 1 . . . Parts Repaired . | . . . . . . . . . . . . . . . Time . | . . . . . . . . . . . . . . . Parts Recycled . | . . . . . . . . . . . . . . . Recycled Matter . | . . . . . . . . . . . . . . . Retrieved Matter . | . . . . . . . . . . . . . . . Retrieved Components . | . . . . . . . . . . . . . . . Parts Scanalyzed . | . . . . . . . . . . . . . . . Part Schematics Acquired . | . . . . . . . . . . . . . . . Parts Damaged . | . . . . . . . . . . . . . . . Bothacking | -11 -10 -10 -10 -9 -8 -7 -6 -6 -6 -5 -4 -3 -2 -1 ------------ Run | Yrd Mat Min Exi Min Mat Fac Fac Low Low Fac Fac Res Res Acc Used RIF Installer . | . . . . . . . . . . . . . . . Robots Hacked . | . . . . . . . . . . . . . . . Non-combat . | . . . . . . . . . . . . . . . Combat . | . . . . . . . . . . . . . . . Robot Hacks Applied . | . . . . . . . . . . . . . . . Relay Couplers Released . | . . . . . . . . . . . . . . . Fabnet Peak Effective % . | . . . . . . . . . . . . . . . Robots Rewired . | . . . . . . . . . . . . . . . Allies Hacked . | . . . . . . . . . . . . . . . Hacks Repelled . | . . . . . . . . . . . . . . . Allies | -11 -10 -10 -10 -9 -8 -7 -6 -6 -6 -5 -4 -3 -2 -1 -------- Run | Yrd Mat Min Exi Min Mat Fac Fac Low Low Fac Fac Res Res Acc Total Allies 7 | . . 4 . . . . . 3 . . . . . . Largest Group 4 | . . 4 4 3 . . . 3 3 . . . . . Highest-Rated Group 93 | . . 71 71 40 . . . 93 93 . . . . . Highest-Rated Ally 31 | . . 31 31 16 . . . 31 31 . . . . . Total Orders . | . . . . . . . . . . . . . . . Ally Attacks 26 | . . . . 26 . . . . . . . . . . Total Damage 303 | . . . . 303 . . . . . . . . . . Kills 7 | . . . . 7 . . . . . . . . . . Allies Corrupted . | . . . . . . . . . . . . . . . Allies Melted . | . . . . . . . . . . . . . . . Intel | -11 -10 -10 -10 -9 -8 -7 -6 -6 -6 -5 -4 -3 -2 -1 ------- Run | Yrd Mat Min Exi Min Mat Fac Fac Low Low Fac Fac Res Res Acc Active Infowar (turns) 4022 | 37 361 304 . . 202 . 595 358 198 38 225 278 751 675 Terrain 3118 | . . . . . . . 595 358 198 38 225 278 751 675 Seismic 904 | 37 361 304 . . 202 . . . . . . . . . Robot Analysis Total . | . . . . . . . . . . . . . . . Derelict Logs Recovered 4 | . . 1 . 1 . . . 2 . . . . . . Drone Launches . | . . . . . . . . . . . . . . . Drone Recoveries . | . . . . . . . . . . . . . . . Exploration | -11 -10 -10 -10 -9 -8 -7 -6 -6 -6 -5 -4 -3 -2 -1 ------------- Run | Yrd Mat Min Exi Min Mat Fac Fac Low Low Fac Fac Res Res Acc Turns Passed 6443 | 148 361 759 426 296 656 634 595 358 198 38 225 278 753 718 Spaces Moved 4419 | 74 196 404 262 124 421 581 451 341 160 33 188 226 476 482 Core 13 | 5 . . . 1 . . . . . . . . . 7 Treads 1015 | 69 196 404 262 84 . . . . . . . . . . Legs . | . . . . . . . . . . . . . . . Wheels 3391 | . . . . 39 421 581 451 341 160 33 188 226 476 475 Hover . | . . . . . . . . . . . . . . . Flight . | . . . . . . . . . . . . . . . Fastest Speed 50 | 50 160 160 160 95 95 90 90 90 105 105 105 120 120 50 Average Speed 119 | 152 160 160 160 140 121 99 90 93 105 105 109 120 120 117 Slowest Speed 300 | 160 160 160 160 300 140 100 90 105 105 105 120 120 120 130 Overloaded Moves . | . . . . . . . . . . . . . . . Propulsion Burnouts . | . . . . . . . . . . . . . . . Robots Hopped . | . . . . . . . . . . . . . . . Potential Cave-ins 17 | . . . . . . . . . . . . . . 17 Cave-ins Triggered 4 | . . . . . . . . . . . . . . 4 Exploration Rate (%) 27 | 4 41 88 61 26 37 13 14 57 26 1 5 5 12 16 Regions Visited 14 Branch Regions 5 Pre-discovered Areas 3 | . . 1 . 1 . . . 1 . . . . . . Known Exits Taken . | . . . . . . . . . . . . . . . Unknown Exits Taken 14 | 1 1 1 1 1 1 1 1 1 1 1 1 1 1 . Scrap Searched 6 | . . 1 . . . . . 5 . . . . . . Spaces Dug 48 | . . . . . . 3 10 . 2 . 2 . 2 29 Terrain Destroyed 422 | 3 2 . . 4 207 17 32 54 35 . 2 . 23 43 Melee 28 | . . . . . . 3 10 . . . 2 . 2 11 Projectile 68 | . . . . 4 3 . 1 4 6 . . . 21 29 AOE 326 | 3 2 . . . 204 14 21 50 29 . . . . 3 Terrain Rammed . | . . . . . . . . . . . . . . . Walls Destroyed . | . . . . . . . . . . . . . . . Machines Disabled . | . . . . . . . . . . . . . . . Actions | -11 -10 -10 -10 -9 -8 -7 -6 -6 -6 -5 -4 -3 -2 -1 --------- Run | Yrd Mat Min Exi Min Mat Fac Fac Low Low Fac Fac Res Res Acc Total 5117 | 91 218 476 270 162 492 626 613 357 172 34 202 233 591 580 Wait 349 | . 6 45 3 4 33 16 134 . . . . . 61 47 Move 4402 | 73 195 403 261 123 420 580 450 340 159 32 187 225 475 479 Hop . | . . . . . . . . . . . . . . . Pick Up 47 | 3 3 2 2 1 6 6 4 4 1 . 4 4 6 1 Fast Attach 26 | 7 . . . . 7 4 1 . . . 5 1 . 1 Attach 37 | . . 2 1 1 4 2 3 . 4 1 2 2 5 10 Detach 10 | . . . . . 2 3 1 . . . 1 1 . 2 Swap 20 | . . 1 1 . . 1 2 2 . . 1 . 5 7 Drop 24 | . . . 2 . . 8 4 3 . . . . 3 4 Fire 165 | 8 14 23 . 32 20 1 2 8 8 1 . . 33 15 Melee 33 | . . . . . . 5 12 . . . 2 . 3 11 Ram 1 | . . . . 1 . . . . . . . . . . Kick . | . . . . . . . . . . . . . . . Crush . | . . . . . . . . . . . . . . . Escape Stasis 3 | . . . . . . . . . . . . . . 3 Rewire . | . . . . . . . . . . . . . . . Trap . | . . . . . . . . . . . . . . . Miscellaneous . | . . . . . . . . . . . . . . . Route ------- -11/Scrapyard -10/Materials (discovered 2 exits: [*Mat] / [*Min]) -10/Mines (discovered 3 exits: [*Mat x2] / *Exi) -10/Exiles -9/Mines -8/Materials -7/Factory -6/Factory -6/Lower Caves -6/Lower Caves -5/Factory -4/Factory -3/Research -2/Research -1/Access History --------- Turn | Location | Event 101 | -11/Scrapyard | Discovered new exit (range 12) 149 | -11/Scrapyard | Entered Materials 302 | -10/Materials | Build established: Mutant 461 | -10/Materials | Discovered new exit (range 3) 462 | -10/Materials | Discovered new exit (range 14) 510 | -10/Materials | Entered Mines 636 | -10/Mines | Assembled infested the area 825 | -10/Mines | Learned location of Zion (-7) 972 | -10/Mines | Assisted by bots powering up and referring to "LRC-V3" 1130 | -10/Mines | Discovered new exit (range 6) 1199 | -10/Mines | Discovered new exit (range 6) 1227 | -10/Mines | Received a Mining Laser from a helpful Derelict 1249 | -10/Mines | Deemed a non-threat by the Exiles lab entrance 1251 | -10/Mines | Discovered new exit (range 5) 1269 | -10/Mines | Entered Exiles 1269 | -10/Exiles | Accompanied by 4 allies 1308 | -10/Exiles | Met 8R-AWN 1337 | -10/Exiles | Met EX-HEX 1381 | -10/Exiles | Met EX-BIN 1402 | -10/Exiles | Aligned with FarCom system 1404 | -10/Exiles | Given EX-Vault access code 1447 | -10/Exiles | Opened EX-Vault 1458 | -10/Exiles | Found YOLO Cannon 1494 | -10/Exiles | Warned to stay clear of 0b10 Research branches 1546 | -10/Exiles | Met EX-DEC 1678 | -10/Exiles | Discovered new exit (range 10) 1695 | -10/Exiles | Left Exiles lab with YOLO Cannon 1695 | -10/Exiles | Entered Mines 1695 | -9/Mines | Accompanied by 3 allies 1707 | -9/Mines | Met a Derelict bent on vengeance 1750 | -9/Mines | Excavation squad dispatched 1750 | -9/Mines | A large section of the Mines collapsed 1945 | -9/Mines | Core integrity fell below 50% 1967 | -9/Mines | Lost 3 parts (2n1w) 1983 | -9/Mines | Discovered new exit (range 7) 1991 | -9/Mines | Entered Materials 1991 | -8/Materials | Evolved 4 slots: Utility x2, Weapon x2 2249 | -8/Materials | Lost 3 parts (2u1w) 2274 | -8/Materials | Build established: Skirmisher 2626 | -8/Materials | Discovered new exit (range 15) 2647 | -8/Materials | Entered Factory 2647 | -7/Factory | Evolved 2 slots: Propulsion x2 3131 | -7/Factory | Build established: Mutant 3255 | -7/Factory | Discovered new exit (range 15) 3274 | -7/Factory | Central database locked down 3281 | -7/Factory | Entered another Factory area 3281 | -6/Factory | Evolved 2 slots: Utility x2 3587 | -6/Factory | Build established: Assassin 3841 | -6/Factory | Discovered new exit (range 11) 3876 | -6/Factory | Entered Lower Caves 4092 | -6/Lower Caves | Learned Factory emergency access door positions 4104 | -6/Lower Caves | Entered an active Warlord outpost 4126 | -6/Lower Caves | A Commander dispatched an escort 4128 | -6/Lower Caves | Learned Armory garrison access intel 4185 | -6/Lower Caves | Build established: Mutant 4203 | -6/Lower Caves | Discovered new exit (range 15) 4217 | -6/Lower Caves | Learned Factory security intel 4234 | -6/Lower Caves | Entered another Lower Caves area 4234 | -6/Lower Caves | Accompanied by 3 allies 4235 | -6/Lower Caves | Commander's escort returned to base 4235 | -6/Lower Caves | Commander's escort returned to base 4235 | -6/Lower Caves | Commander's escort returned to base 4283 | -6/Lower Caves | Lost 3 parts (1p1n1w) 4292 | -6/Lower Caves | Discovered new exit (range 12) 4432 | -6/Lower Caves | Entered Factory 4432 | -5/Factory | Evolved 2 slots: Utility x2 4451 | -5/Factory | Discovered new exit (range 15) 4470 | -5/Factory | Entered another Factory area 4470 | -4/Factory | Evolved 2 slots: Power x1, Utility x1 4556 | -4/Factory | Central database locked down 4671 | -4/Factory | Discovered new exit (range 7) 4695 | -4/Factory | Entered Research 4695 | -3/Research | Evolved 2 slots: Utility x2 4730 | -3/Research | Discovered new exit (range 17) 4736 | -3/Research | Build established: Derelict-Assassin 4973 | -3/Research | Entered another Research area 4973 | -2/Research | Evolved 2 slots: Utility x2 5104 | -2/Research | Build established: Assassin 5638 | -2/Research | Discovered new exit (range 16) 5726 | -2/Research | Entered Access 5726 | -1/Access | Evolved 2 slots: Utility x2 6353 | -1/Access | Crushed by falling debris 6353 | -1/Access | Crushed by falling debris 6362 | -1/Access | Crushed by falling debris 6363 | -1/Access | System corruption reached 10% 6379 | -1/Access | Crushed by falling debris 6416 | -1/Access | System corruption reached 30% 6419 | -1/Access | Core integrity fell below 50% 6438 | -1/Access | Spotted B-99 Colossus 6442 | -1/Access | Core integrity fell below 20% 6442 | -1/Access | Spotted B-99 Colossus 6444 | -1/Access | Destroyed by P-80 Master with Gamma Rifle Last Messages --------------- 06422_ Acquired Prototype Wheel. 06422_ Identified Hds. Centrium Wheel. 06423_ Dropped Enh. Nova Cannon. 06426_ Triggered Alarm Trap. 06426_ An alarm sounds. 06426_ ALERT: Alarm triggered, dispatching investigation squad. 06438_ System corrupted: Substantial component data lost. 06439_ Penetrated by Slug. 06439_ Slug penetrates Wall. 06439_ Penetrated by Slug. 06439_ Adv. Cryofiber Web destroyed. 06439_ Slug penetrates Wall. 06439_ Slug penetrates S-43 Plague. 06442_ Slug penetrates Wall. 06442_ Penetrated by Slug. 06443_ Slug penetrates Wall. 06443_ Penetrated by Slug. 06444_ Hacking Suite destroyed. Map ----- +----------------------------------------------------+ | ?????????????????????????????????????????????????? | | ?????????????????????????????????????????????????? | | ?????????????????????????????????????????????????? | | ?????????????????????????????????????????????????? | | ?????????????????????????????????????????????????? | | ?????????????????????????????????????????????????? | | ?????????????????????????????????????????????????? | | ?????????????????????????????????????????????????? | | ?????????????????????????????????????????????????? | | ?????????????????????????????????????????????????? | | ????????????????????? BB?????????????????????? | | ???????????????????? B BB?????????????????????? | | ???????????????????? ?????????????????????? | | ???????????????????? ?????????????????????? | | ????#???????????????? ??????????????????????? | | ????????#???????????? ??????????????????????? | | ????#????????????????# #??????????????????????? | | ????##???????????????# #??????????????????????? | | ???????????#?????????# #??????????????????????? | | ? ??????#????????????# #??????????????????????? | | ??###########????????# #??????????????????????? | | #?# #????????# #??#######?????????????? | | ### #??####### #? #?????????????? | | ??# # # #? #?????????????? | | ### # # # #?????????????? | | ?## # " # @# #?????????????? | | #?# ] # """ # + #?????????????? | | #?# # """ ; %%# ]]= #?????????????? | | ?## ""# " #ss # ]]! #?????????????? | | ### ""# # ps #? ]]! #?????????????? | | ### ""# #s s #? #?????????????? | | # G# # s #??#######?????????????? | | =# ""######/###p #??????????????????????? | | *%= %%[ ""#?# #??????????????????????? | | %== = ""#?# p p #??????????????????????? | | %* =###h h #??????????????????????? | | # # ]/p*]] #??????????????????????? | | ################+######+###??????????????????????? | | ###?###???? ?? ??????????????????????????????????? | | ????#####?? ?????????????????????????????????????? | | ###?##?#?? ?? ??????????????????????????????????? | | #######?#? ? ?? ? ???????????????????????????????? | | ##?##?###???? ?? ????????????????????????????????? | | ?####??##?? ?? ?????????????????????????????????? | | #?#?#?###?#??????#???????????????????????????????? | | | | | | | | | | | +----------------------------------------------------+ Best States ------------- Heat Dissipation 90 Energy Generation 45 Energy Capacity 855 Matter Stores 300 Matter Capacity 300 Sight Range 16 Terrain Scan Range 24 Terrain Scan Density 110 Base Temperature (-) 200 Armor Coverage 825 Point Defense Rating 240 Evasion (%) 42 Targeting Accuracy 6 Target Analysis 8 Core Analysis 6 Recoil Reduction 2 Offensive Hacking 20 Item Schematics ----------------- None Robot Schematics ------------------ None Fabricated ------------ Nothing Repaired ---------- Nothing Studied --------- Arm. Huge Wheel | -7/Factory | Hacked Neutrino Core | -4/Factory | Hacked Alien Tech Used ----------------- None Achievements -------------- None Challenges ------------ None Game ------ Seed BeamSpreadFilter Manual? 0 Play Time 00:43:12 Cumulative 126.9 hours Start 2026.07.16 @ 02:20:49 End 2026.07.16 @ 03:01:05 Sessions 1 Manual Loads 0 Difficulty Rogue Special Mode None Game No. 267 Rogue 267 Adventurer 0 Explorer 0 Win Type - Total 0 Types 0/0/0/0/0/0/0/0/0/0 Lore% 53 Gallery% 53 Achievement% 42 Wizard Run 0 Options --------- Layout 2 ASCII 0 Keyboard 1 Movement Arrows Keybinds 0 Fullscreen 1 Font 24/Smallcaps Map View 50x44 Zoom Use 0% Tactical HUD 1 Map Filters NONE Filters NONE Steam 1 RUN: 020c3776-1e7e-4e91-aba2-64e419017cbc